bitfinex/quotes_SOLUSD_20230905
["timestamp","ask_amount","ask_price","bid_price","bid_amount"]
[1693906763054,90.516,19.444,19.434,8.027]
[1693906763758,94.4549,19.443,19.434,8.027]
[1693906763957,8.024,19.441,19.434,8.027]
[1693906767357,20.0,19.44,19.428,8.029]
[1693906767564,8.026,19.437,19.428,8.029]
[1693906772861,8.025,19.438,19.428,8.029]
[1693906791887,8.025,19.439,19.428,8.029]
[1693906797992,8.025,19.439,19.43,32.17]
[1693906798193,8.025,19.439,19.43,40.198]
[1693906798595,8.025,19.439,19.43,32.17]
[1693906799183,8.025,19.439,19.43,40.198]
[1693906800183,8.025,19.439,19.43,32.17]
[1693906801997,8.025,19.439,19.43,40.198]
[1693906802210,8.025,19.439,19.428,8.029]
[1693906802387,8.025,19.439,19.429,8.028]
[1693906807099,8.025,19.439,19.426,41.93926916]
[1693906807311,8.025,19.439,19.428,8.029]
[1693906807693,8.025,19.439,19.427,8.029]
[1693906824934,8.025,19.439,19.427,8.029]
[1693906847351,8.025,19.439,19.427,8.029]
[1693906869159,8.025,19.439,19.432,8.027]
[1693906871071,8.025,19.439,19.431,8.028]
[1693906873572,94.4549,19.443,19.431,8.028]
[1693906873776,428.12753,19.449,19.431,8.028]
[1693906873973,36.62753,19.449,19.431,8.028]
[1693906874176,25.914,19.449,19.431,8.028]
[1693906874372,8.021,19.448,19.431,33.8180331]
[1693906877979,8.021,19.448,19.431,85.24642288]
[1693906880182,8.02,19.451,19.44,32.17]
[1693906880373,8.019,19.452,19.444,8.022]
[1693906882180,8.019,19.454,19.444,8.022]
[1693906882386,25.907,19.455,19.444,8.022]
[1693906883674,8.019,19.453,19.444,8.022]
[1693906886101,8.018,19.454,19.444,8.022]
[1693906889302,8.018,19.454,19.444,8.022]
[1693906889505,94.6207,19.456,19.444,8.022]
[1693906889705,8.018,19.455,19.444,8.022]
[1693906890397,102.6387,19.456,19.444,8.022]
[1693906890597,94.6207,19.456,19.444,8.022]
[1693906891002,102.6387,19.456,19.444,8.022]
[1693906891201,94.6207,19.456,19.444,8.022]
[1693906891702,102.6387,19.456,19.444,8.022]
[1693906894695,128.4287331,19.456,19.444,8.022]
[1693906894894,55.0,19.455,19.444,8.022]
[1693906895102,8.019,19.454,19.444,33.942]
[1693906896306,25.906,19.455,19.444,8.022]
[1693906896500,8.019,19.454,19.444,8.022]
[1693906896714,64.562,19.454,19.44,88.753]
[1693906896894,64.562,19.454,19.444,8.022]
[1693906897302,8.019,19.454,19.444,8.022]
[1693906911720,94.6207,19.456,19.444,8.022]
[1693906911721,8.018,19.455,19.444,8.022]
[1693906926125,8.018,19.455,19.443,8.023]
[1693906943844,32.17,19.45,19.437,15.5648148]
[1693906944038,33.939,19.447,19.438,8.025]
[1693906946727,8.022,19.447,19.438,8.025]
[1693906949632,8.021,19.449,19.438,8.025]
[1693906949831,8.021,19.449,19.438,64.615]
[1693906951840,90.2725,19.45,19.438,64.615]
[1693906952030,98.2925,19.45,19.438,64.615]
[1693906952733,8.02,19.45,19.438,64.615]
[1693906955733,8.02,19.452,19.44,32.17]
[1693906955933,8.02,19.452,19.443,33.944]
[1693906956338,8.02,19.452,19.443,8.023]
[1693906976969,8.019,19.453,19.443,8.023]
[1693906996585,32.17,19.45,19.438,8.025]
[1693906996786,33.939,19.447,19.438,8.025]
[1693906997291,75.345684,19.447,19.438,8.025]
[1693906998390,75.345684,19.447,19.437,8.025]
[1693907003103,75.345684,19.447,19.437,8.025]
[1693907004597,75.345684,19.447,19.433,8.027]
[1693907004598,55.0,19.446,19.433,8.027]
[1693907004808,90.522,19.443,19.433,8.027]
[1693907004994,33.946,19.443,19.433,8.027]
[1693907005600,8.023,19.443,19.433,8.027]
[1693907008208,32.17,19.44,19.424,56.628]
[1693907008397,33.957,19.436,19.427,8.029]
[1693907008596,8.026,19.436,19.427,8.029]
[1693907025118,8.026,19.436,19.428,55.0]
[1693907025422,8.026,19.436,19.428,63.029]
[1693907025624,7.026,19.436,19.429,2.54168897]
[1693907025921,7.026,19.436,19.429,10.57068897]
[1693907027023,7.026,19.436,19.429,2.54168897]
[1693907032609,7.026,19.436,19.429,10.57068897]
[1693907033021,7.026,19.436,19.429,2.54168897]
[1693907033427,7.026,19.436,19.429,10.57068897]
[1693907034737,7.026,19.436,19.429,2.54168897]
[1693907035527,63.622,19.436,19.429,2.54168897]
[1693907035831,63.622,19.436,19.427,10.57168897]
[1693907036220,63.622,19.436,19.427,2.54168897]
[1693907036437,63.622,19.436,19.427,10.57168897]
[1693907036739,7.026,19.436,19.427,10.57168897]
[1693907055453,8.025,19.438,19.427,10.57168897]
[1693907062959,391.5,19.45,19.43,282.17]
[1693907063158,8.018,19.457,19.44,32.17]
[1693907063358,417.399,19.46,19.445,90.51]
[1693907063359,391.5,19.46,19.445,90.51]
[1693907063661,391.5,19.46,19.445,429.16685986]
[1693907063850,391.5,19.46,19.446,189.98036287]
[1693907064049,8.016,19.459,19.45,8.02]
[1693907064460,8.016,19.459,19.449,8.02]
[1693907067453,55.0,19.458,19.444,25.919]
[1693907067657,8.017,19.457,19.447,8.021]
[1693907068258,32.17,19.46,19.447,8.021]
[1693907068458,8.017,19.457,19.447,8.021]
[1693907069364,97.8756,19.461,19.45,32.17]
[1693907069566,97.8756,19.461,19.453,8.019]
[1693907079975,32.17,19.47,19.453,8.019]
[1693907080273,8.012,19.469,19.453,8.019]
[1693907080474,106.8408,19.469,19.453,8.019]
[1693907080670,139.0108,19.469,19.453,8.019]
[1693907081455,55.0,19.468,19.453,8.019]
[1693907081669,8.014,19.466,19.453,8.019]
[1693907081959,55.0,19.465,19.453,8.019]
[1693907082167,63.014,19.465,19.453,8.019]
[1693907095787,63.014,19.465,19.45,58.082]
[1693907095967,63.014,19.465,19.451,20.0]
[1693907096571,63.014,19.465,19.453,8.019]
[1693907100384,8.014,19.465,19.453,8.019]
[1693907104302,130.9988,19.469,19.453,8.019]
[1693907104586,139.0108,19.469,19.453,8.019]
[1693907104779,130.9988,19.469,19.453,8.019]
[1693907105178,106.8408,19.469,19.453,8.019]
[1693907115794,106.8408,19.469,19.453,77.14309307]
[1693907116397,8.012,19.469,19.453,77.14309307]
[1693907131489,8.012,19.469,19.452,41.47940081]
[1693907131490,8.012,19.469,19.452,8.019]
[1693907131695,8.012,19.469,19.453,33.927]
[1693907132596,8.012,19.469,19.46,32.17]
[1693907132792,93.1315,19.472,19.463,33.909]
[1693907133201,101.1425,19.472,19.463,33.909]
[1693907134204,93.1315,19.472,19.463,33.909]
[1693907134511,101.1425,19.472,19.463,33.909]
[1693907135301,93.1315,19.472,19.463,33.909]
[1693907135510,25.877,19.477,19.463,33.909]
[1693907136420,8.01,19.474,19.463,33.909]
[1693907136603,8.01,19.474,19.463,8.015]
[1693907142618,229.81576729,19.478,19.463,8.015]
[1693907142810,55.0,19.477,19.463,8.015]
[1693907143222,8.01,19.474,19.463,8.015]
[1693907145526,8.01,19.474,19.464,8.014]
[1693907151125,26.91965647,19.499,19.465,228.85501223]
[1693907151422,399.504,19.49,19.471,4.94461036]
[1693907151629,92.9211,19.498,19.48,32.17]
[1693907151815,92.9211,19.498,19.486,33.869]
[1693907152327,589.1,19.499,19.486,33.869]
[1693907152328,32.17,19.51,19.49,32.17]
[1693907152517,97.9942,19.505,19.495,33.853]
[1693907153126,7.997,19.507,19.495,33.853]
[1693907153311,97.9942,19.515,19.495,33.853]
[1693907153512,7.997,19.507,19.495,33.853]
[1693907153715,7.997,19.507,19.495,8.001]
[1693907154524,11.92287,19.506,19.486,25.864]
[1693907154730,90.259,19.5,19.488,8.004]
[1693907155120,8.001,19.496,19.488,8.004]
[1693907155634,8.001,19.496,19.486,8.005]
[1693907157833,8.001,19.496,19.478,102.163]
[1693907157834,55.0,19.495,19.484,8.006]
[1693907158139,55.0,19.495,19.478,158.634]
[1693907158140,33.86,19.492,19.483,8.006]
[1693907158522,33.86,19.492,19.478,56.471]
[1693907158731,33.86,19.492,19.479,20.0]
[1693907159129,33.86,19.492,19.483,8.006]
[1693907159331,8.003,19.492,19.483,8.006]
[1693907162346,55.0,19.491,19.483,8.006]
[1693907162638,8.004,19.489,19.483,8.006]
[1693907163031,8.004,19.489,19.483,7.48079]
[1693907163233,8.004,19.49,19.483,7.48079]
[1693907164537,25.854,19.494,19.483,7.48079]
[1693907164926,8.003,19.492,19.483,7.48079]
[1693907165122,25.853,19.495,19.483,7.48079]
[1693907165328,56.408,19.501,19.483,7.48079]
[1693907165728,8.002,19.495,19.483,7.48079]
[1693907166240,56.408,19.501,19.483,7.48079]
[1693907166241,8.001,19.496,19.483,7.48079]
[1693907166434,8.001,19.497,19.483,7.48079]
[1693907169636,8.001,19.497,19.483,7.48079]
[1693907170136,8.001,19.497,19.484,55.0]
[1693907170333,8.001,19.497,19.487,8.004]
[1693907176850,8.0,19.498,19.487,8.004]
[1693907179340,55.0,19.497,19.487,8.004]
[1693907179541,8.002,19.495,19.487,8.004]
[1693907181557,8.001,19.497,19.487,8.004]
[1693907182062,8.0,19.498,19.487,8.004]
[1693907182263,8.001,19.497,19.487,8.004]
[1693907182560,8.0,19.498,19.487,8.004]
[1693907182860,8.001,19.497,19.487,8.004]
[1693907183059,8.0,19.498,19.487,8.004]
[1693907196460,105.9942,19.499,19.487,8.004]
[1693907201571,97.9942,19.499,19.487,8.004]
[1693907202167,105.9942,19.499,19.482,92.94315356]
[1693907202473,105.9942,19.499,19.487,8.004]
[1693907202474,8.0,19.499,19.487,8.004]
[1693907202677,7.998,19.503,19.49,31.96]
[1693907202876,96.3457,19.504,19.493,90.286]
[1693907203267,31.96,19.508,19.493,90.286]
[1693907203462,128.3057,19.508,19.493,90.286]
[1693907203682,136.3017,19.508,19.493,90.286]
[1693907204172,96.3457,19.508,19.493,90.286]
[1693907204385,104.3417,19.508,19.493,90.286]
[1693907204770,7.996,19.508,19.493,90.286]
[1693907205273,7.996,19.51,19.493,90.286]
[1693907205475,7.996,19.51,19.5,31.96]
[1693907205776,7.996,19.51,19.501,7.999]
[1693907207961,7.996,19.51,19.498,25.847]
[1693907208169,55.0,19.509,19.498,8.0]
[1693907208373,7.997,19.506,19.498,8.0]
[1693907209066,55.0,19.505,19.497,8.0]
[1693907209276,7.998,19.504,19.497,8.0]
[1693907209866,7.998,19.504,19.496,8.001]
[1693907210066,7.998,19.504,19.497,8.001]
[1693907210275,33.838,19.504,19.496,8.001]
[1693907210667,7.998,19.504,19.496,8.001]
[1693907215476,25.836,19.508,19.496,8.001]
[1693907215677,7.998,19.505,19.496,8.001]
[1693907222075,7.996,19.509,19.496,8.001]
[1693907222384,26.78091207,19.522,19.5,31.95]
[1693907222586,7.994,19.514,19.505,33.836]
[1693907222781,7.994,19.514,19.505,7.997]
[1693907223085,7.993,19.515,19.505,7.997]
[1693907223291,118.5515,19.519,19.505,33.836]
[1693907223474,7.993,19.515,19.501,25.843]
[1693907223675,7.993,19.515,19.505,7.997]
[1693907224283,7.993,19.515,19.495,112.19978413]
[1693907224592,20.0,19.514,19.497,8.0]
[1693907224790,33.83,19.509,19.497,8.0]
[1693907226487,7.996,19.509,19.497,8.0]
[1693907226682,92.2779,19.511,19.497,8.0]
[1693907226885,100.2729,19.511,19.497,8.0]
[1693907227193,100.2729,19.511,19.497,117.30776548]
[1693907227492,88.303,19.52,19.498,52.88976548]
[1693907227796,7.993,19.515,19.504,33.838]
[1693907227984,7.993,19.516,19.504,90.236]
[1693907228287,25.819,19.52,19.504,90.236]
[1693907228492,7.993,19.518,19.504,90.236]
[1693907229283,7.993,19.518,19.504,33.838]
[1693907229284,33.815,19.518,19.504,33.838]
[1693907229489,33.815,19.518,19.504,7.998]
[1693907231684,44.96523,19.518,19.504,7.998]
[1693907231888,55.0,19.517,19.504,7.998]
[1693907232088,33.822,19.514,19.504,7.998]
[1693907232298,75.0,19.513,19.498,52.88976548]
[1693907232493,75.0,19.513,19.498,8.0]
[1693907232494,33.83,19.509,19.498,8.0]
[1693907233394,86.719766,19.509,19.498,8.0]
[1693907234795,86.719766,19.509,19.496,8.001]
[1693907235001,55.0,19.508,19.496,8.001]
[1693907235299,7.998,19.505,19.496,8.001]
[1693907236296,55.0,19.508,19.496,8.001]
[1693907236499,52.889766,19.509,19.496,8.001]
[1693907236805,96.456,19.512,19.496,8.001]
[1693907237100,96.456,19.512,19.496,60.89076548]
[1693907237295,96.456,19.512,19.497,20.0]
[1693907237489,96.456,19.512,19.501,90.248]
[1693907237691,7.992,19.519,19.501,143.13776548]
[1693907238493,98.355,19.52,19.501,143.13776548]
[1693907238689,98.355,19.52,19.502,25.7900331]
[1693907238897,106.346,19.52,19.502,25.7900331]
[1693907239109,106.346,19.52,19.507,7.996]
[1693907240497,98.355,19.52,19.507,7.996]
[1693907241396,106.346,19.52,19.507,7.996]
[1693907241704,154.748,19.52,19.507,7.996]
[1693907244605,106.346,19.52,19.507,7.996]
[1693907246404,55.0,19.519,19.507,7.996]
[1693907246599,7.992,19.518,19.507,7.996]
[1693907247302,55.0,19.519,19.507,7.996]
[1693907247514,7.992,19.519,19.507,7.996]
[1693907247799,7.992,19.519,19.501,52.88976548]
[1693907248005,7.992,19.519,19.502,25.842]
[1693907248204,7.992,19.519,19.505,7.997]
[1693907248605,180.529,19.52,19.505,7.997]
[1693907248606,7.994,19.515,19.505,7.997]
[1693907248806,7.994,19.515,19.504,7.998]
[1693907249204,55.0,19.518,19.504,7.998]
[1693907249512,62.993,19.517,19.504,7.998]
[1693907251915,55.0,19.517,19.504,7.998]
[1693907252422,106.347,19.52,19.504,7.998]
[1693907253310,106.346,19.52,19.504,7.998]
[1693907255310,106.346,19.52,19.504,64.21990266]
[1693907258506,55.0,19.519,19.504,64.21990266]
[1693907258706,62.992,19.519,19.504,64.21990266]
[1693907259602,88.812,19.519,19.504,64.21990266]
[1693907259807,88.812,19.519,19.504,7.998]
[1693907260418,98.355,19.52,19.504,7.998]
[1693907260605,98.355,19.52,19.505,76.22190266]
[1693907260808,98.355,19.52,19.509,90.211]
[1693907261008,98.355,19.52,19.509,146.43290266]
[1693907261501,146.432902,19.527,19.509,146.43290266]
[1693907261715,98.4779,19.526,19.509,146.43290266]
[1693907262113,98.4779,19.526,19.509,90.211]
[1693907262419,98.4779,19.526,19.514,33.819]
[1693907263017,102.011,19.527,19.514,33.819]
[1693907263410,7.988,19.528,19.514,33.819]
[1693907264707,120.968902,19.528,19.514,7.993]
[1693907265013,55.0,19.527,19.515,8.99299011]
[1693907265214,62.989,19.527,19.515,7.993]
[1693907265920,7.989,19.527,19.516,0.99999011]
[1693907266123,7.989,19.527,19.515,0.99999011]
[1693907266321,7.989,19.527,19.516,7.993]
[1693907266527,55.0,19.526,19.514,7.994]
[1693907266825,7.99,19.523,19.507,82.225]
[1693907267027,7.99,19.523,19.509,7.995]
[1693907267028,20.0,19.522,19.509,7.995]
[1693907267228,55.0,19.521,19.51,0.99999011]
[1693907267525,55.0,19.521,19.513,7.994]
[1693907267724,95.4833,19.52,19.507,56.389]
[1693907267918,103.4743,19.52,19.511,7.995]
[1693907268230,103.4743,19.52,19.512,0.99999011]
[1693907268427,103.4743,19.52,19.511,7.995]
[1693907268632,55.0,19.519,19.508,7.996]
[1693907268827,7.993,19.517,19.509,0.99999011]
[1693907269519,7.993,19.515,19.506,7.997]
[1693907270113,7.993,19.515,19.507,0.99999011]
[1693907270330,7.993,19.516,19.507,8.99699011]
[1693907270630,7.993,19.516,19.507,7.997]
[1693907270830,7.993,19.516,19.507,0.99999011]
[1693907271327,62.993,19.515,19.506,7.997]
[1693907271527,62.993,19.515,19.505,0.99999011]
[1693907271930,62.993,19.515,19.505,7.997]
[1693907272941,62.993,19.515,19.506,0.99999011]
[1693907273129,62.993,19.515,19.506,8.99699011]
[1693907273436,62.993,19.515,19.506,7.997]
[1693907273920,62.993,19.515,19.507,0.99999011]
[1693907274120,62.993,19.515,19.506,7.997]
[1693907274930,62.993,19.515,19.505,7.997]
[1693907275132,62.993,19.515,19.506,0.99999011]
[1693907275336,62.993,19.515,19.506,8.99699011]
[1693907275527,62.993,19.515,19.506,7.997]
[1693907277437,55.0,19.515,19.506,7.997]
[1693907277639,62.993,19.515,19.506,7.997]
[1693907282047,7.993,19.516,19.506,7.997]
[1693907282240,179.0883,19.52,19.507,0.99999011]
[1693907282432,7.993,19.517,19.508,7.996]
[1693907283551,7.992,19.518,19.508,7.996]
[1693907284747,153.2683,19.52,19.508,7.996]
[1693907284948,121.3183,19.52,19.508,7.996]
[1693907285253,121.3183,19.52,19.509,0.99999011]
[1693907285451,121.3183,19.52,19.512,7.994]
[1693907288143,129.3093,19.52,19.512,7.994]
[1693907288339,121.3183,19.52,19.512,7.994]
[1693907288748,129.3093,19.52,19.512,7.994]
[1693907288946,129.3093,19.52,19.507,25.836]
[1693907289254,129.3093,19.52,19.508,0.99999011]
[1693907289955,185.6613,19.52,19.508,7.996]
[1693907290149,185.6613,19.52,19.509,0.99999011]
[1693907290451,185.6613,19.52,19.509,8.99599011]
[1693907291451,129.3093,19.52,19.509,8.99599011]
[1693907293858,121.3183,19.52,19.509,8.99599011]
[1693907295448,129.3093,19.52,19.509,8.99599011]
[1693907299042,129.3093,19.52,19.509,0.99999011]
[1693907299245,129.3093,19.52,19.509,8.99599011]
[1693907310264,33.826,19.52,19.509,8.99599011]
[1693907310471,99.9792,19.527,19.51,31.95]
[1693907310769,156.3692,19.527,19.516,0.99999011]
[1693907310969,64.379,19.527,19.519,7.992]
[1693907311160,64.379,19.527,19.517,7.992]
[1693907311766,7.989,19.527,19.517,7.992]
[1693907311967,97.2209,19.528,19.517,7.992]
[1693907312271,97.2209,19.528,19.518,0.99999011]
[1693907312456,97.2209,19.528,19.521,7.991]
[1693907313168,7.988,19.529,19.521,7.991]
[1693907313370,105.2059,19.536,19.521,7.991]
[1693907313578,7.984,19.539,19.522,0.99999011]
[1693907313872,7.984,19.539,19.522,57.22189277]
[1693907314056,7.984,19.539,19.522,0.99999011]
[1693907314567,7.986,19.533,19.521,0.99999011]
[1693907315065,7.988,19.527,19.515,0.99999011]
[1693907315267,7.988,19.527,19.515,8.99299011]
[1693907315479,7.988,19.527,19.515,7.993]
[1693907315653,7.988,19.527,19.516,0.99999011]
[1693907315858,7.988,19.528,19.516,0.99999011]
[1693907316153,7.988,19.528,19.515,0.99999011]
[1693907316674,73.890672,19.528,19.515,0.99999011]
[1693907316878,55.0,19.527,19.515,0.99999011]
[1693907317069,7.99,19.524,19.513,0.99999011]
[1693907318065,7.99,19.524,19.513,8.99399011]
[1693907319166,7.99,19.524,19.512,0.99999011]
[1693907319362,20.0,19.523,19.512,0.99999011]
[1693907319774,7.991,19.52,19.51,0.99999011]
[1693907320077,7.991,19.52,19.508,7.996]
[1693907320279,7.991,19.52,19.509,0.99999011]
[1693907320472,33.81,19.52,19.507,7.996]
[1693907320672,33.81,19.52,19.508,0.99999011]
[1693907320868,114.489776,19.52,19.508,0.99999011]
[1693907321071,88.670776,19.52,19.508,7.996]
[1693907321270,96.3704,19.522,19.508,33.831]
[1693907321475,96.3704,19.522,19.509,0.99999011]
[1693907321784,104.3614,19.522,19.512,7.994]
[1693907322173,96.3704,19.522,19.512,7.994]
[1693907324269,96.3704,19.522,19.513,0.99999011]
[1693907324467,7.988,19.528,19.515,33.819]
[1693907324685,98.0175,19.529,19.516,0.99999011]
[1693907324871,25.807,19.528,19.519,7.991]
[1693907326279,33.795,19.528,19.519,7.991]
[1693907326480,33.795,19.528,19.518,7.992]
[1693907327778,33.795,19.528,19.515,25.825]
[1693907327779,33.795,19.528,19.517,7.992]
[1693907328384,33.795,19.528,19.518,0.99999011]
[1693907328682,33.795,19.528,19.517,7.992]
[1693907328982,33.795,19.528,19.513,7.994]
[1693907329187,33.795,19.528,19.514,0.99999011]
[1693907329367,33.795,19.528,19.51,0.99999011]
[1693907330087,55.0,19.527,19.51,0.99999011]
[1693907330287,7.989,19.526,19.514,7.994]
[1693907330485,7.988,19.527,19.515,0.99999011]
[1693907330692,7.988,19.527,19.518,7.992]
[1693907330987,7.988,19.527,19.515,25.825]
[1693907331183,7.988,19.527,19.516,0.99999011]
[1693907331374,25.807,19.528,19.518,7.992]
[1693907331971,33.795,19.528,19.518,7.992]
[1693907332177,33.795,19.528,19.519,0.99999011]
[1693907332377,33.795,19.528,19.52,7.991]
[1693907333885,33.795,19.528,19.513,0.99999011]
[1693907334687,33.795,19.528,19.518,7.992]
[1693907334888,33.795,19.528,19.512,56.373]
[1693907335091,33.795,19.528,19.518,7.992]
[1693907335285,33.795,19.528,19.519,0.99999011]
[1693907335493,25.807,19.528,19.519,0.99999011]
[1693907335689,25.807,19.528,19.52,7.991]
[1693907335997,33.795,19.528,19.52,7.991]
[1693907336396,33.795,19.528,19.516,25.824]
[1693907336595,33.795,19.528,19.519,7.992]
[1693907338280,33.795,19.528,19.518,7.992]
[1693907338487,55.0,19.527,19.518,7.992]
[1693907338797,88.799,19.527,19.512,56.374]
[1693907338987,88.799,19.527,19.514,7.993]
[1693907339394,88.799,19.527,19.515,0.99999011]
[1693907339597,88.799,19.527,19.515,8.99299011]
[1693907340195,88.799,19.527,19.515,7.993]
[1693907343215,7.989,19.527,19.515,7.993]
[1693907343995,33.795,19.528,19.515,7.993]
[1693907344197,33.795,19.528,19.516,0.99999011]
[1693907344502,33.795,19.528,19.519,7.991]
[1693907345592,33.795,19.528,19.518,7.992]
[1693907346493,25.807,19.528,19.518,7.992]
[1693907347706,33.795,19.528,19.518,7.992]
[1693907350106,25.807,19.528,19.518,7.992]
[1693907350305,33.795,19.528,19.518,7.992]
[1693907352615,33.795,19.528,19.515,7.993]
[1693907352817,55.0,19.527,19.511,0.99999011]
[1693907353006,7.99,19.524,19.515,7.993]
[1693907354408,7.99,19.524,19.516,0.99999011]
[1693907355919,7.99,19.524,19.515,8.99299011]
[1693907356118,7.99,19.524,19.515,7.993]
[1693907357525,7.99,19.524,19.516,0.99999011]
[1693907357819,7.99,19.524,19.517,7.992]
[1693907358009,7.99,19.524,19.516,7.993]
[1693907362816,7.99,19.524,19.515,7.993]
[1693907363327,20.0,19.523,19.49,250.41079798]
[1693907363513,33.814,19.518,19.508,7.996]
[1693907363709,33.814,19.518,19.509,0.99999011]
[1693907363915,33.814,19.518,19.509,8.99599011]
[1693907364108,33.814,19.518,19.509,7.996]
[1693907364314,33.814,19.518,19.51,0.99999011]
[1693907364925,33.814,19.518,19.51,8.99499011]
[1693907365221,59.651,19.518,19.51,7.995]
[1693907365421,59.651,19.518,19.504,56.398]
[1693907365622,33.829,19.518,19.51,7.995]
[1693907366830,33.829,19.518,19.505,25.838]
[1693907367128,33.829,19.518,19.506,0.99999011]
[1693907367321,33.829,19.518,19.507,7.997]
[1693907367527,33.829,19.518,19.507,64.387]
[1693907367723,33.829,19.518,19.508,0.99999011]
[1693907367927,33.829,19.518,19.511,7.995]
[1693907369107,33.829,19.518,19.501,56.407]
[1693907369315,33.829,19.518,19.509,0.99999011]
[1693907369716,33.829,19.518,19.51,7.995]
[1693907371930,33.829,19.518,19.511,0.99999011]
[1693907372131,25.837,19.518,19.513,7.994]
[1693907372927,33.829,19.518,19.511,7.995]
[1693907373124,33.829,19.518,19.512,0.99999011]
[1693907373423,33.829,19.518,19.51,7.995]
[1693907374414,59.651,19.518,19.511,0.99999011]
[1693907374624,59.651,19.518,19.51,7.995]
[1693907375217,59.651,19.518,19.505,25.838]
[1693907375530,59.651,19.518,19.506,0.99999011]
[1693907375912,59.651,19.518,19.509,0.99999011]
[1693907376113,59.651,19.518,19.509,8.99599011]
[1693907376310,59.651,19.518,19.509,7.996]
[1693907377912,33.829,19.518,19.509,7.996]
[1693907378734,33.829,19.518,19.508,7.996]
[1693907378937,55.0,19.517,19.508,7.996]
[1693907379135,33.821,19.515,19.501,56.405]
[1693907379328,33.821,19.515,19.507,7.997]
[1693907381025,7.994,19.515,19.507,7.997]
[1693907383340,7.993,19.516,19.507,7.997]
[1693907385143,62.993,19.517,19.507,7.997]
[1693907385335,33.829,19.518,19.508,0.99999011]
[1693907385531,33.829,19.518,19.511,7.995]
[1693907389742,33.829,19.518,19.51,7.995]
[1693907391334,33.829,19.518,19.509,7.996]
[1693907394558,25.837,19.518,19.509,7.996]
[1693907395072,25.837,19.518,19.512,33.823]
[1693907395550,33.829,19.518,19.512,7.994]
[1693907396456,33.829,19.518,19.509,7.996]
[1693907396939,33.829,19.518,19.51,7.995]
[1693907397254,33.829,19.518,19.507,25.836]
[1693907397460,55.0,19.517,19.509,7.996]
[1693907397643,7.994,19.515,19.505,25.838]
[1693907397953,7.994,19.515,19.508,7.996]